bitfinex-derivatives/quotes_ETHF0:USTF0_20210405
["timestamp","ask_amount","ask_price","bid_price","bid_amount"]
[1617666199139,30.0,2096.5,2094.5,5.78]
[1617666199340,30.0,2096.5,2096.4,4.01]
[1617666199739,32.90695,2096.5,2095.6,2.90695]
[1617666199941,32.90695,2096.5,2095.7,5.86]
[1617666200141,32.0,2096.4,2095.7,5.86]
[1617666201641,2.90695,2095.8,2095.7,5.86]
[1617666201841,4.72635,2095.8,2095.7,5.86]
[1617666204142,4.72635,2095.8,2095.3,5.95]
[1617666204342,4.72635,2095.8,2095.7,5.84]
[1617666204744,4.72635,2095.8,2095.3,5.84]
[1617666205146,4.72635,2095.8,2095.7,5.98]
[1617666205345,4.72635,2095.8,2095.3,5.76]
[1617666205745,1.8194,2095.8,2095.7,5.94]
[1617666205945,0.9477,2096.1,2095.3,5.78]
[1617666206147,2.0,2096.4,2095.3,5.78]
[1617666206347,2.0,2096.4,2095.7,5.88]
[1617666206546,2.0,2096.4,2095.3,5.82]
[1617666206946,2.0,2096.4,2095.8,5.92]
[1617666207147,2.0,2096.4,2095.3,5.85]
[1617666207748,2.90695,2095.4,2095.3,5.85]
[1617666208648,5.50235,2095.4,2095.3,5.85]
[1617666209849,5.50235,2095.4,2094.8,2.90695]
[1617666210053,5.50235,2095.4,2094.9,5.75]
[1617666211849,2.90695,2095.0,2094.9,5.75]
[1617666212651,60.3779,2096.2,2094.9,5.75]
[1617666212849,60.3779,2096.2,2094.9,8.3721]
[1617666213750,60.3779,2096.2,2095.7,2.90695]
[1617666213950,60.3779,2096.2,2095.7,5.25165]
[1617666214149,13.482,2096.5,2095.8,5.94]
[1617666214549,69.2806,2096.7,2095.8,5.94]
[1617666214950,70.2295,2096.7,2095.8,5.94]
[1617666215149,69.2806,2096.7,2095.8,5.94]
[1617666215750,69.2806,2096.7,2096.0,2.90695]
[1617666216349,69.2806,2096.7,2096.1,5.77]
[1617666216550,70.2206,2096.7,2096.1,5.77]
[1617666216749,69.2806,2096.7,2096.1,5.77]
[1617666217852,2.90695,2096.2,2096.1,5.77]
[1617666218052,4.84105,2096.2,2096.1,5.77]
[1617666219157,2.90695,2096.2,2096.1,5.77]
[1617666219454,5.15325,2096.2,2096.1,5.77]
[1617666221554,2.90695,2096.2,2096.1,5.77]
[1617666223558,13.0094,2096.9,2096.1,5.77]
[1617666223758,67.4349,2096.4,2096.1,5.77]
[1617666223961,67.4349,2096.4,2096.3,2.90695]
[1617666223962,70.34185,2096.4,2096.3,2.90695]
[1617666224160,70.34185,2096.4,2096.3,5.44025]
[1617666224362,67.4349,2096.4,2096.3,11.25025]
[1617666229366,67.4349,2096.4,2096.3,8.71695]
[1617666229768,67.4349,2096.4,2096.3,5.81]
[1617666229967,70.34185,2096.4,2096.3,5.81]
[1617666230168,70.34185,2096.4,2095.8,2.90695]
[1617666230369,70.34185,2096.4,2095.9,5.77]
[1617666230568,70.34185,2096.4,2096.3,5.77]
[1617666230968,70.34185,2096.4,2095.8,2.90695]
[1617666231172,70.34185,2096.4,2095.9,5.96]
[1617666231368,70.34185,2096.4,2096.3,5.72]
[1617666231568,70.34185,2096.4,2095.8,2.90695]
[1617666231768,70.34185,2096.4,2095.9,5.76]
[1617666231970,67.4349,2096.4,2096.3,5.74]
[1617666232168,67.4349,2096.4,2095.8,2.90695]
[1617666232369,67.4349,2096.4,2095.9,5.92]
[1617666232569,67.4349,2096.4,2096.3,5.79]
[1617666232768,67.4349,2096.4,2095.8,2.90695]
[1617666232969,67.4349,2096.4,2095.9,5.98]
[1617666233171,67.4349,2096.4,2096.3,5.89]
[1617666233369,67.4349,2096.4,2095.8,2.90695]
[1617666233571,67.4349,2096.4,2096.0,5.78]
[1617666233775,67.4349,2096.4,2095.9,5.81]
[1617666233972,2.90695,2096.0,2095.9,5.81]
[1617666234173,2.90695,2096.0,2095.8,2.90695]
[1617666234374,2.90695,2096.0,2095.9,5.9]
[1617666241778,76.132,2096.4,2095.9,5.9]
[1617666241976,76.132,2096.4,2096.3,2.90695]
[1617666242179,76.132,2096.4,2096.3,4.94135]
[1617666242376,2.90695,2096.6,2096.3,10.87135]
[1617666243978,2.90695,2097.2,2096.3,10.87135]
[1617666244380,13.8853,2098.0,2096.3,10.87135]
[1617666244980,13.8853,2098.0,2096.4,2.0]
[1617666245380,13.8853,2098.0,2096.6,2.0]
[1617666245982,13.8853,2098.0,2097.4,2.90695]
[1617666246183,13.8853,2098.0,2097.4,4.67215]
[1617666246582,13.8853,2098.0,2097.5,5.73]
[1617666247483,14.8292,2098.0,2097.5,5.73]
[1617666247683,13.8853,2098.0,2097.5,5.73]
[1617666247884,43.8853,2098.0,2097.5,5.73]
[1617666248084,2.90695,2097.6,2096.9,5.87]
[1617666248487,2.90695,2097.6,2097.5,0.43]
[1617666248488,2.9348086,2097.6,2097.5,0.43]
[1617666248687,2.9348086,2097.6,2097.0,5.83]
[1617666248887,2.96267189,2097.6,2097.0,5.83]
[1617666249088,2.96267189,2097.6,2097.5,0.36]
[1617666249289,2.96267189,2097.6,255.58,135.49592026]
[1617666249290,2.96267189,2097.6,2097.1,5.51]
[1617666249687,2.96267189,2097.6,2096.1,0.13]
[1617666249688,2.93480892,2097.6,2097.5,0.02]
[1617666249887,2.92087911,2097.6,2097.5,0.02]
[1617666250087,63.1057,2097.4,2097.2,4.68]
[1617666250288,63.1057,2097.4,2096.7,2.90695]
[1617666250488,63.1057,2097.4,2097.3,0.28]
[1617666250887,63.1057,2097.4,2096.7,2.90695]
[1617666251088,63.1057,2097.4,2097.3,5.85]
[1617666251488,63.1057,2097.4,2096.7,2.90695]
[1617666251689,63.1057,2097.4,2097.0,5.88]
[1617666251891,63.1057,2097.4,2097.3,5.93]
[1617666252089,63.1057,2097.4,2096.8,3.34]
[1617666252291,63.1057,2097.4,2097.1,4.83]
[1617666252490,63.1057,2097.4,2097.3,5.91]
[1617666252690,63.1057,2097.4,2096.8,5.72]
[1617666252890,63.1057,2097.4,2096.7,2.90695]
[1617666253090,63.1057,2097.4,2097.3,5.97]
[1617666253291,63.1057,2097.4,2096.8,5.85]
[1617666254091,2.90695,2096.9,2096.8,5.85]
[1617666258194,53.5707763,2097.2,2096.8,5.85]
[1617666259002,53.5568,2097.2,2096.8,5.85]
[1617666259201,53.5568,2097.2,2096.8,7.85]
[1617666260102,53.5568,2097.2,2097.1,2.90695]
[1617666260303,53.5568,2097.2,2097.1,5.62565]
[1617666260702,53.5568,2097.2,2097.1,11.39565]
[1617666261705,53.5568,2097.2,2097.1,13.39565]
[1617666262107,0.01397428,2097.5,2097.1,13.39565]
[1617666262706,0.02794856,2097.6,2097.1,13.39565]
[1617666262707,0.01397327,2097.6,2097.1,13.39565]
[1617666263109,3.8790232,2097.7,2097.1,13.39565]
[1617666263309,2.9209232,2097.7,2097.1,13.39565]
[1617666264109,2.90695,2097.7,2097.1,13.39565]
[1617666264311,0.01397495,2097.6,2097.1,10.4887]
[1617666265212,0.01397495,2097.6,2097.4,65.696]
[1617666265412,2.90695,2097.7,2097.4,67.696]
[1617666265612,2.90695,2097.7,2097.5,5.96]
[1617666266012,2.90695,2097.7,2097.5,7.96]
[1617666266212,2.90695,2097.7,2097.6,2.90695]
[1617666266411,2.90695,2097.7,2097.6,6.89185]
[1617666266812,2.90695,2097.7,2097.6,12.65185]
[1617666270715,0.01400542,2097.8,2097.6,12.65185]
[1617666271115,0.01400495,2097.9,2097.6,12.65185]
[1617666273015,0.01400521,2097.8,2097.6,12.65185]
[1617666274717,0.01397758,2098.2,2097.6,12.65185]
[1617666275515,0.01397782,2098.1,2097.6,12.65185]
[1617666276418,2.92092685,2098.3,2098.0,4.90695]
[1617666276617,2.92092685,2098.3,2098.0,10.71695]
[1617666277718,0.01397685,2098.3,2098.0,10.71695]
[1617666279219,0.01397685,2098.3,2098.0,8.71695]
[1617666279620,0.01397805,2098.2,2098.0,8.71695]
[1617666279819,0.02795782,2098.1,2098.0,8.71695]
[1617666280219,0.13979792,2098.1,2098.0,8.71695]
[1617666280421,3.04674792,2098.1,2098.0,8.71695]
[1617666282022,2.9628655,2098.1,2098.0,8.71695]
[1617666282226,0.0559155,2098.1,2098.0,8.71695]
[1617666282426,0.02795652,2098.1,2098.0,8.71695]
[1617666283129,0.02795648,2098.2,2098.0,8.71695]
[1617666283929,0.02795607,2098.1,2098.0,8.71695]
[1617666284228,0.01397811,2098.1,2098.0,8.71695]
[1617666285030,0.01396871,2098.3,2098.0,8.71695]
[1617666285831,2.9209075,2098.4,2098.0,8.71695]
[1617666286431,2.9209075,2098.4,2098.3,2.90695]
[1617666286831,2.9209075,2098.4,2098.3,8.84695]
[1617666288133,2.9209075,2098.4,2098.3,5.94]
[1617666288535,2.93486671,2098.4,2098.0,2.90695]
[1617666288733,5.38778429,2098.4,2098.1,0.03]
[1617666288933,5.38778429,2098.4,2098.3,4.87]
[1617666289133,5.38778429,2098.4,2097.0,61.5381]
[1617666289134,5.47154168,2098.4,2097.0,61.5381]
[1617666289433,62.612,2098.1,2097.1,5.73]
[1617666289832,0.01395975,2098.0,2097.0,61.5381]
[1617666290031,0.01395975,2098.0,2097.1,5.86]
[1617666290432,0.01395975,2098.0,2097.6,2.90695]
[1617666290835,0.01395975,2098.0,2097.7,5.91]
[1617666291035,0.01395975,2098.0,2097.7,3.8102]
[1617666291234,0.01395975,2098.0,2096.0,62.3123]
[1617666291235,0.05584977,2097.8,2097.1,6.0]
[1617666291436,76.7363,2097.7,2097.1,6.0]
[1617666291634,0.01396376,2097.4,2096.0,62.3123]
[1617666291834,0.01396376,2097.4,2096.1,3.18]
[1617666292037,0.01396376,2097.4,2097.2,5.75]
[1617666292235,0.01396433,2097.3,2096.6,5.83]
[1617666292434,2.59576433,2097.3,2096.8,2.90695]
[1617666292934,2.59576433,2097.3,2096.9,5.91]
[1617666293334,0.01396433,2097.3,2096.9,5.91]
[1617666293734,0.01396371,2097.4,2096.9,5.91]
[1617666294335,0.01396371,2097.4,2097.1,2.90695]
[1617666294935,0.01396309,2097.5,2097.2,5.83]
[1617666295335,0.01396309,2097.5,2097.2,8.0134]
[1617666295939,0.01396273,2097.6,2097.2,8.0134]
[1617666296349,2.90695,2097.3,2097.2,8.0134]
[1617666298241,2.90695,2097.3,2097.2,5.83]
[1617666298441,2.93490108,2097.3,2097.2,5.83]
[1617666298844,2.96285305,2097.3,2097.2,5.83]
[1617666299244,2.90695,2097.3,2097.2,5.83]
[1617666299645,2.9628543,2097.3,2097.2,5.83]
[1617666300446,2.92092522,2097.3,2097.2,5.83]
[1617666300947,3.85445,2097.3,2097.2,5.83]
[1617666301245,2.9209247,2097.3,2097.2,5.83]
[1617666302547,2.90695,2097.3,2097.2,5.83]
[1617666307550,2.93492896,2097.3,2097.2,5.83]
[1617666309152,0.02797896,2097.3,2097.2,5.83]
[1617666309353,90.9637,2098.9,2097.2,5.83]
[1617666309553,90.9637,2098.9,2097.3,75.2942]
[1617666309752,90.9637,2098.9,2097.4,2.0]
[1617666309953,0.01398661,2097.7,2097.4,9.7736]
[1617666310153,0.01398569,2097.9,2097.4,9.7736]
[1617666310553,0.01398519,2098.0,2097.8,2.90695]
[1617666310854,0.01398519,2098.0,2097.9,5.97]
[1617666311054,0.01398519,2098.0,2097.9,8.5014]
[1617666312254,0.01398519,2098.0,2097.9,65.6267]
[1617666313055,0.01398502,2098.1,2097.9,65.6267]
[1617666313456,0.01398507,2098.0,2097.9,65.6267]
[1617666313857,2.90695,2098.2,2097.9,65.6267]
[1617666314259,0.01398484,2098.1,2097.9,65.6267]
[1617666314957,0.01398484,2098.1,2097.9,66.5781]
[1617666315358,0.01398484,2098.1,2097.9,65.6267]
[1617666315959,0.01398484,2098.1,2098.0,2.0]
[1617666316360,2.92093392,2098.2,2098.0,7.75]
[1617666316559,2.90695,2098.2,2098.1,2.90695]
[1617666316761,2.90695,2098.2,2098.1,4.90695]
[1617666316959,0.01398376,2098.3,2098.1,10.85695]
[1617666317761,0.01398376,2098.3,2098.2,73.2166]
[1617666317963,0.01398376,2098.3,2098.2,79.0966]
[1617666318961,0.01397774,2098.4,2098.2,79.0966]
[1617666319466,0.02795548,2098.5,2098.2,79.0966]
[1617666319467,0.01397003,2098.5,2098.2,79.0966]
[1617666320664,0.01397003,2098.5,2098.4,2.90695]
[1617666321066,0.01397003,2098.5,2098.4,8.77695]
[1617666322165,0.01397003,2098.5,2098.4,11.24765]
[1617666325267,2.58497003,2098.6,2098.4,11.24765]
[1617666327468,2.58497003,2098.6,2098.5,60.3719]
[1617666327868,2.58497003,2098.6,2098.5,66.3619]
[1617666328068,0.01397003,2098.6,2098.5,66.3619]
[1617666328271,0.01397003,2098.6,2098.5,68.3619]
[1617666328469,0.0139693,2098.8,2098.5,68.3619]
[1617666328668,0.0139693,2098.8,2098.7,2.90695]
[1617666329069,0.0139693,2098.8,2098.7,8.74695]
[1617666329876,2.92091631,2099.0,2098.7,8.74695]
[1617666330071,0.01396631,2099.0,2098.7,8.74695]
[1617666330271,0.01396783,2099.1,2098.8,2.0]
[1617666330673,0.01396783,2099.1,2099.0,2.90695]
[1617666330872,0.01396783,2099.1,2099.0,5.41945]
[1617666331074,0.13996615,2099.1,2099.0,11.24945]
[1617666331472,0.05598635,2099.1,2099.0,11.24945]
[1617666331672,0.05598635,2099.1,2099.0,13.24945]
[1617666331873,0.01396455,2099.3,2099.0,13.24945]
[1617666334477,0.01396455,2099.3,2099.1,70.9138]
[1617666334878,0.01396455,2099.3,2099.2,5.93]
[1617666335278,0.05586336,2099.3,2099.2,5.93]
[1617666335680,0.05586336,2099.3,2099.0,2.90695]
[1617666335681,0.1396697,2099.3,2099.1,5.76]
[1617666335880,60.0869,2099.2,2099.1,5.76]
[1617666336080,60.0869,2099.2,2099.0,2.90695]
[1617666336081,60.36624453,2099.2,2099.0,2.90695]
[1617666336280,60.36624453,2099.2,2099.1,5.87]
[1617666336480,60.53388222,2099.2,2099.1,5.87]
[1617666336880,60.0869,2099.2,2099.1,5.87]
[1617666337482,60.36626069,2099.2,2099.1,5.87]
[1617666337780,60.0869,2099.2,2099.1,5.87]
[1617666338180,60.53388352,2099.2,2099.1,5.87]
[1617666339183,60.53388352,2099.2,2098.5,5.99]
[1617666339482,60.53388352,2099.2,2099.1,5.72]
[1617666339882,60.53388352,2099.2,2098.5,5.82]
[1617666340084,61.48128352,2099.2,2099.1,5.84]
[1617666340482,61.48128352,2099.2,2098.5,5.71]
[1617666340682,61.48128352,2099.2,2099.1,5.85]
[1617666340882,61.48128352,2099.2,2099.1,6.8014]
[1617666341084,61.48128352,2099.2,2098.9,2.90695]
[1617666341284,61.48128352,2099.2,2099.1,5.91]
[1617666341684,61.48128352,2099.2,2099.0,5.84]
[1617666341883,61.48128352,2099.2,2098.9,2.90695]
[1617666342085,61.48128352,2099.2,2099.1,5.86]
[1617666342284,61.48128352,2099.2,2099.0,5.75]
[1617666342685,61.48128352,2099.2,2099.1,5.75]
[1617666342884,61.48128352,2099.2,2099.0,5.75]
[1617666343285,61.0343,2099.2,2099.1,5.9]
[1617666343485,91.0343,2099.2,2098.8,5.78]
[1617666343684,91.0343,2099.2,2098.4,79.8775]
[1617666343685,91.70517955,2099.2,2098.4,79.8775]
[1617666343885,91.70517955,2099.2,2097.0,2.0]
[1617666343886,30.9474,2099.2,2099.1,0.6529]
[1617666344085,32.9474,2099.2,2098.9,5.8148]
[1617666344286,32.0,2099.0,2098.2,5.96]
[1617666344685,0.67099189,2098.8,2098.6,5.78]
[1617666344887,3.43599189,2098.8,2098.3,5.84]
[1617666345086,0.27958844,2098.4,2098.3,5.84]
[1617666345287,1.22468844,2098.4,2098.2,5.77]
[1617666345485,1.22468844,2098.4,2098.1,2.90695]
[1617666345486,0.27958844,2098.4,2098.1,2.90695]
[1617666345886,0.27958844,2098.4,2098.3,5.74]
[1617666346086,0.27958844,2098.4,2098.1,2.90695]
[1617666346087,0.27959113,2098.5,2098.2,5.77]
[1617666346487,0.27958934,2098.4,2098.3,5.79]
[1617666346688,0.27958934,2098.4,2098.2,5.9]
[1617666346887,3.18653934,2098.4,2098.2,5.9]
[1617666347087,3.18653934,2098.4,2098.1,2.90695]
[1617666347290,3.18653934,2098.4,2098.3,6.0]
[1617666347688,3.18653934,2098.4,2098.1,3.86035]
[1617666347891,3.18653934,2098.4,2098.3,5.83]
[1617666348288,3.18653934,2098.4,2098.2,5.96]
[1617666348489,3.18653934,2098.4,2098.3,5.9]
[1617666348888,3.18653934,2098.4,2098.2,5.81]
[1617666349088,3.18653934,2098.4,2098.3,5.95]
[1617666349488,3.18653934,2098.4,2098.2,5.92]
[1617666349691,3.18653934,2098.4,2098.3,5.72]
[1617666349889,0.27958934,2098.4,2098.3,8.2173]
[1617666350089,0.27958934,2098.4,2098.3,2.4973]
[1617666350290,0.05591366,2098.4,2098.3,8.4673]
[1617666350691,0.01397743,2098.4,2098.3,8.4673]
[1617666351091,0.01397743,2098.4,2098.3,87.3217]
[1617666351292,0.01397706,2098.5,2098.3,87.3217]
[1617666352793,0.01397706,2098.5,2098.4,2.90695]
[1617666353196,0.01397706,2098.5,2098.4,8.82695]
[1617666353598,0.01397321,2098.7,2098.4,8.82695]
[1617666354000,0.01397316,2098.6,2098.4,8.82695]
[1617666354598,2.90695,2099.0,2098.4,8.82695]
[1617666354798,0.01397306,2098.6,2098.4,5.92]
[1617666356401,0.01397882,2098.5,2098.4,5.92]
[1617666356801,2.92092882,2098.5,2098.4,8.82695]
[1617666358605,2.93490734,2098.5,2098.4,8.82695]
[1617666359006,0.01397782,2098.7,2098.4,8.82695]
[1617666359204,0.01397782,2098.7,2098.4,10.65045]
[1617666359805,0.01397691,2098.9,2098.8,73.2408]
[1617666360204,0.02795339,2098.9,2098.8,73.2408]
[1617666360404,0.02795339,2098.9,2098.8,79.0308]
[1617666360805,2.93490339,2098.9,2098.8,81.93775]
[1617666361005,2.96286023,2098.9,2098.8,81.93775]
[1617666361205,2.96286023,2098.9,2098.8,8.69695]
[1617666362208,3.04673783,2098.9,2098.8,5.79]
[1617666362611,2.90695,2098.9,2097.8,5.84]
[1617666362811,2.90695,2097.9,2097.8,5.84]
[1617666363009,5.37815,2097.9,2097.7,73.0122]
[1617666363208,5.37815,2097.9,2097.8,5.93]
[1617666363411,5.39213157,2097.9,2097.8,5.93]
[1617666364009,5.40611634,2097.9,2097.8,5.93]
[1617666364411,5.51799163,2097.9,2097.8,5.93]
[1617666364609,35.51799163,2097.9,2097.8,5.93]
[1617666364810,35.43405462,2097.9,2097.8,5.93]
[1617666365209,35.51791677,2097.9,2097.8,5.93]
[1617666365410,30.0,2097.7,2096.9,0.42]
[1617666365610,30.0,2097.7,2096.8,2.90695]
[1617666366011,30.0,2097.7,2097.0,5.72]
[1617666366012,0.01397722,2097.4,2097.0,5.72]
[1617666366209,0.01397722,2097.4,2096.8,2.90695]
[1617666366210,2.59877722,2097.4,2096.9,5.98]
[1617666366611,2.59877722,2097.4,2097.1,5.88]
[1617666366811,2.90695,2097.2,2096.8,2.90695]
[1617666367010,2.90695,2097.2,2096.9,5.87]
[1617666367211,32.90695,2097.2,2096.8,2.90695]
[1617666367413,0.01397982,2097.1,2096.8,2.90695]
[1617666367614,0.01397982,2097.1,2096.9,5.78]
[1617666367814,0.01398083,2097.0,2096.9,5.78]
[1617666368213,0.05592437,2097.0,2096.9,5.78]
[1617666368413,74.92122437,2097.0,2096.9,5.78]
[1617666369315,0.02796053,2097.0,2096.9,5.78]
[1617666369714,0.01397984,2097.0,2096.9,5.78]
[1617666370114,0.02795968,2097.1,2096.9,5.78]
[1617666370115,0.01397951,2097.1,2096.9,5.78]
[1617666371216,0.97697951,2097.1,2096.9,5.78]
[1617666371414,0.01397951,2097.1,2096.9,5.78]
[1617666372215,2.90695,2097.2,2096.9,5.78]
[1617666373015,2.92091884,2097.2,2096.9,5.78]
[1617666373217,0.01396884,2097.0,2096.9,5.78]
[1617666373419,2.63236884,2097.0,2096.9,5.78]
[1617666374018,32.64633914,2097.0,2096.9,3.3147]
[1617666374219,32.64633914,2097.0,2096.1,5.98]
[1617666374420,79.732,2096.2,2096.1,5.98]
[1617666374621,81.8264,2096.2,2096.0,72.906]
[1617666375021,81.8264,2096.2,2096.1,5.85]
[1617666376927,84.73335,2096.2,2096.1,5.85]
[1617666379030,5.00135,2096.2,2096.1,5.85]
[1617666379429,5.00135,2096.2,2095.8,61.8131]
[1617666379629,5.00135,2096.2,2095.9,5.82]
[1617666379830,5.00135,2096.2,2096.1,5.94]
[1617666380029,5.00135,2096.2,2095.8,61.8131]
[1617666380230,5.00135,2096.2,2096.0,5.9]
[1617666380429,2.90695,2096.2,2096.1,5.86]
[1617666380630,2.90695,2096.2,2095.9,5.76]
[1617666380831,73.832,2096.0,2095.7,3.55]
[1617666381031,2.90695,2095.8,2095.6,2.90695]
[1617666381431,2.90695,2095.8,2095.7,5.92]
[1617666385240,12.96172803,2097.1,2095.8,56.834]
[1617666385441,12.96172803,2097.1,2095.8,58.8657]
[1617666385639,12.9478,2097.1,2095.9,5.87]
[1617666386941,12.9478,2097.1,2096.3,2.90695]
[1617666387141,12.9478,2097.1,2096.3,5.23245]
[1617666387341,12.9478,2097.1,2096.4,5.8]
[1617666389045,12.9478,2097.1,2096.6,2.90695]
[1617666389443,12.9478,2097.1,2096.7,5.85]
[1617666390645,63.3801,2097.3,2096.7,5.85]
[1617666390844,0.01391468,2097.8,2096.7,5.85]
[1617666391045,2.59882936,2097.9,2097.0,2.90695]
[1617666391046,2.90695,2097.1,2097.0,2.90695]
[1617666391244,2.90695,2097.1,2097.0,4.82665]
[1617666391445,2.90695,2097.1,2097.0,8.08665]
[1617666393044,2.90695,2097.1,2097.0,5.1797]
[1617666393247,2.90695,2097.1,2097.0,3.26]
[1617666393646,2.90695,2097.1,2096.9,6.01]
[1617666394046,2.90695,2097.1,2097.0,5.78]
[1617666394246,2.90695,2097.1,2096.9,5.8]
[1617666394448,2.90695,2097.1,2097.0,5.98]
[1617666394845,2.571,2097.9,2096.9,5.73]
[1617666395045,2.571,2097.9,2097.5,2.90695]
[1617666395246,2.571,2097.9,2097.5,5.13055]
[1617666395446,2.571,2097.9,2097.7,72.4906]
[1617666396046,13.1096,2098.4,2097.8,5.98]
[1617666396645,2.571,2098.7,2097.8,5.98]
[1617666397044,2.571,2098.7,2098.3,2.90695]
[1617666397245,2.571,2098.7,2098.3,4.76085]
[1617666397445,2.571,2098.7,2098.4,5.94]
[1617666398046,2.571,2098.7,2097.8,5.76]
[1617666398246,5.42510504,2098.7,2097.8,5.76]
[1617666398446,5.42510504,2098.7,2098.5,5.97]
[1617666398650,0.01390507,2098.6,2097.8,5.95]
[1617666399052,2.90695,2097.9,2097.7,72.4906]
[1617666399250,2.90695,2097.9,2097.8,5.89]
[1617666400251,2.58490457,2098.7,2097.8,5.89]
[1617666400852,2.571,2098.7,2097.8,5.89]
[1617666401053,2.90695,2098.1,2098.0,2.90695]
[1617666401553,2.90695,2098.1,2098.0,8.68695]
[1617666406757,2.90695,2098.1,2098.0,10.76085]
[1617666412570,2.90695,2098.1,2098.0,8.68695]
[1617666412773,59.02545,2098.1,2098.0,5.78]
[1617666413174,59.02545,2098.1,2097.2,5.71]
[1617666413369,59.02545,2098.1,2097.3,2.0]
[1617666413572,59.02545,2098.1,2098.0,5.98]
[1617666413769,59.02545,2098.1,2097.3,2.0]
[1617666413969,59.02545,2098.1,2097.4,5.87]
[1617666414170,59.02545,2098.1,2098.0,5.8]
[1617666414373,59.02545,2098.1,2097.3,2.0]
[1617666414573,59.02545,2098.1,2097.4,5.87]
[1617666414773,59.02545,2098.1,2098.0,5.96]
[1617666414972,59.02545,2098.1,2097.3,2.0]
[1617666415172,59.02545,2098.1,2097.4,5.97]
[1617666415374,56.1185,2098.1,2097.9,2.90695]
[1617666415774,56.1185,2098.1,2098.0,6.0]
[1617666417176,56.1185,2098.1,2097.2,5.79]
[1617666417374,57.8291,2098.1,2097.4,2.90695]
[1617666417774,57.8291,2098.1,2097.5,5.72]
[1617666418375,57.8291,2098.1,2097.2,5.75]
[1617666418776,57.8291,2098.1,2097.6,5.87]
[1617666418977,57.84302396,2098.1,2097.2,5.88]
[1617666419177,0.01392409,2098.0,2097.2,5.88]
[1617666419377,0.01392409,2098.0,2097.7,5.74]
[1617666419579,0.01392506,2097.9,2097.2,5.94]
[1617666419979,0.01392506,2097.9,2097.8,5.96]
[1617666420180,0.01392506,2097.9,2097.2,5.92]
[1617666420580,0.01392506,2097.9,2097.8,5.79]
[1617666420781,0.01392435,2098.0,2097.2,5.93]
[1617666420980,56.1185,2098.1,2097.2,5.93]
[1617666421180,56.1185,2098.1,2097.8,5.98]
[1617666421381,2.90695,2097.9,2097.5,2.90695]
[1617666421780,2.90695,2097.9,2097.8,5.89]
[1617666421982,2.90695,2097.9,2097.5,2.90695]
[1617666422282,2.90695,2097.9,2097.7,5.76]
[1617666422482,2.90695,2097.9,2097.8,5.74]
[1617666422682,2.90695,2097.9,2097.6,8.2494]
[1617666422882,2.90695,2097.9,2097.6,2.5194]
[1617666423082,2.90695,2097.9,2097.8,5.98]
[1617666423283,2.90695,2097.9,2097.7,5.72]
[1617666423482,2.90695,2097.9,2097.8,2.90695]
[1617666423683,2.90695,2097.9,2097.8,8.65695]
[1617666423883,2.90695,2097.9,2097.8,2.90695]
[1617666424284,2.90695,2097.9,2097.8,8.63695]
[1617666424483,3.85585,2097.9,2097.8,8.63695]
[1617666425286,3.85585,2097.9,2097.8,5.73]
[1617666425486,3.86979439,2097.9,2097.8,5.73]
[1617666425685,2.92089439,2097.9,2097.2,5.84]
[1617666425886,5.6053331,2097.9,2097.3,5.72]
[1617666426087,5.6890089,2097.9,2097.8,5.81]
[1617666426286,5.6890089,2097.9,2096.3,58.799]
[1617666426487,65.1272,2097.5,2097.4,5.81]
[1617666426886,65.1272,2097.5,2096.4,5.74]
[1617666427086,65.1272,2097.5,2097.4,5.74]
[1617666427487,68.03415,2097.5,2097.1,2.90695]
[1617666427687,68.03415,2097.5,2097.4,5.73]
[1617666428088,68.03415,2097.5,2097.2,5.8]
[1617666428290,68.03415,2097.5,2097.4,5.89]
[1617666428689,68.03415,2097.5,2097.2,5.78]
[1617666428891,68.03415,2097.5,2097.4,5.8]
[1617666429291,68.03415,2097.5,2097.2,5.8]
[1617666429492,68.03415,2097.5,2097.4,5.93]
[1617666429893,68.03415,2097.5,2097.2,5.77]
[1617666430095,68.03415,2097.5,2097.4,5.83]
[1617666430493,68.03415,2097.5,2097.2,5.92]
[1617666430693,68.03415,2097.5,2097.4,5.73]
[1617666431093,68.03415,2097.5,2097.2,5.91]
[1617666431293,68.03415,2097.5,2097.4,5.96]
[1617666431494,68.03415,2097.5,2097.4,8.86695]
[1617666431694,68.03415,2097.5,2097.4,2.90695]
[1617666431893,68.03415,2097.5,2097.4,8.61695]
[1617666432696,2.90695,2097.5,2097.4,8.61695]
[1617666439301,2.90695,2097.5,2097.4,5.71]
[1617666439701,2.90695,2097.5,2097.1,2.90695]
[1617666439901,2.90695,2097.5,2097.2,4.06]
[1617666440101,2.90695,2097.5,2097.4,5.05]
[1617666440301,2.90695,2097.5,2097.1,2.90695]
[1617666440503,72.099,2097.2,2097.1,2.90695]
[1617666440901,72.099,2097.2,2097.1,8.69695]
[1617666441502,75.00595,2097.2,2097.1,8.69695]
[1617666444306,2.90695,2097.2,2097.1,8.69695]
[1617666445309,2.92095048,2097.2,2097.1,8.69695]
[1617666448113,0.01400048,2097.2,2097.1,8.69695]
[1617666448312,0.01399951,2097.3,2097.2,53.4756]
[1617666448713,0.01399837,2097.5,2097.2,61.2856]
[1617666449112,0.01399679,2097.7,2097.2,61.2856]